bitfinex/quotes_SOLUSD_20240905
["timestamp","ask_amount","ask_price","bid_price","bid_amount"]
[1725559949342,29.56838963,130.64,130.6,26.7989]
[1725559949845,7.6553,130.63,130.59,7.6574]
[1725559950224,1.91403623,130.62,130.58,7.6579]
[1725559950448,1.91403623,130.62,130.57,26.804]
[1725559950745,7.6565,130.61,130.57,26.804]
[1725559951433,1.91403623,130.62,130.58,7.658]
[1725559951637,20.0,130.62,130.58,9.18949263]
[1725559952333,27.6558,130.62,130.58,9.18949263]
[1725559952735,20.0,130.62,130.59,19.1435]
[1725559953053,27.6556,130.63,130.59,26.8009]
[1725559953244,1.91418395,130.62,130.59,26.8009]
[1725559953738,1.91418395,130.62,130.56,25.3345]
[1725559953739,9.56998395,130.62,130.56,25.3345]
[1725559953932,9.56998395,130.62,130.57,7.6585]
[1725559954851,15.9852,130.61,130.56,19.1476]
[1725559955147,21.91463798,130.6,130.56,19.1476]
[1725559956452,7.6575,130.59,130.56,19.1476]
[1725559958944,19.16630661,130.64,130.58,19.1452]
[1725559959154,7.6567,130.61,130.58,19.1452]
[1725559959451,7.6567,130.61,130.57,7.6584]
[1725559959859,1.914405,130.6,130.55,26.8081]
[1725559960044,7.6577,130.59,130.55,26.8081]
[1725559960557,9.57317872,130.58,130.54,7.6602]
[1725559960743,1.91491739,130.57,130.54,7.6602]
[1725559960934,9.57371739,130.57,130.53,7.6608]
[1725559961131,7.6583,130.58,130.54,7.6601]
[1725559962552,1.91492036,130.6,130.55,19.149]
[1725559962734,7.6581,130.58,130.55,26.8086]
[1725559962932,7.6581,130.58,130.55,19.149]
[1725559971742,1.91472209,130.61,130.56,1.53177767]
[1725559971941,9.57122209,130.61,130.57,7.6586]
[1725559972259,9.57122209,130.61,130.58,1.5314696]
[1725559973152,9.57122209,130.61,130.57,9.19007139]
[1725559973352,20.0,130.6,130.57,9.19007139]
[1725559974244,20.0,130.6,130.57,7.6586]
[1725559974640,20.0,130.6,130.58,1.53148313]
[1725559975035,20.0,130.6,130.57,9.19005739]
[1725559975235,27.6569,130.6,130.57,9.19005739]
[1725559975435,27.6569,130.6,130.57,7.6586]
[1725559975838,20.0,130.6,130.56,7.6591]
[1725559976044,1.91436114,130.59,130.56,7.6591]
[1725559976255,7.6571,130.6,130.56,7.6591]
[1725559977639,7.6571,130.6,130.56,9.19069662]
[1725559978447,7.6571,130.6,130.56,7.6591]
[1725559979044,21.91460004,130.62,130.56,1.53160432]
[1725559979271,27.656,130.62,130.58,26.8016]
[1725559980549,9.57069513,130.61,130.58,26.8016]
[1725559980758,9.57086814,130.61,130.58,19.1439]
[1725559980958,1.91412202,130.63,130.6,7.6568]
[1725559981161,7.655,130.64,130.6,7.6568]
[1725559982067,35.3799,130.67,130.64,7.6545]
[1725559982068,18.16166241,130.67,130.64,7.6545]
[1725559982274,18.16166241,130.67,130.65,7.6535]
[1725559982275,1.91396241,130.67,130.65,7.6535]
[1725559982449,1.91330189,130.69,130.65,1.53077235]
[1725559982642,1.91330189,130.69,130.66,26.7867]
[1725559984150,9.56500189,130.69,130.65,7.6538]
[1725559984969,9.56500189,130.69,130.65,9.18439384]
[1725559985753,9.56500189,130.69,130.65,7.6538]
[1725559986848,7.6517,130.69,130.66,1.51925074]
[1725559987048,7.6517,130.69,130.65,9.17305074]
[1725559987263,1.91312476,130.68,130.65,7.6538]
[1725559987666,26.11326432,130.7,130.66,7.6532]
[1725559987974,20.0,130.69,130.65,26.7882]
[1725559988776,27.6517,130.69,130.65,26.7882]
[1725559992071,9.5655142,130.68,130.65,19.1344]
[1725559992249,9.56631802,130.67,130.64,7.6545]
[1725559993277,7.6529,130.67,130.64,7.6545]
[1725559993450,9.56594315,130.68,130.64,7.6545]
[1725559993658,1.91341458,130.67,130.64,7.6545]
[1725559995675,9.56591241,130.68,130.64,7.6545]
[1725560000693,9.56591241,130.68,130.65,7.6539]
[1725560000694,7.6525,130.68,130.65,7.6539]
[1725560001181,29.56526935,130.69,130.65,7.6539]
[1725560001585,7.6523,130.68,130.65,7.6539]
[1725560002688,7.6523,130.68,130.64,7.6543]
[1725560003184,7.6523,130.68,130.65,7.654]
[1725560008484,21.91336935,130.69,130.63,19.1366]
[1725560008788,21.91336935,130.69,130.63,26.7916]
[1725560008789,7.653,130.67,130.63,26.7916]
[1725560008974,7.653,130.67,130.63,19.1366]
[1725560009180,7.6525,130.68,130.64,7.6545]
[1725560009672,1.91339806,130.67,130.64,7.6545]
[1725560011586,1.91339806,130.67,130.59,49.7665531]
[1725560011587,7.6553,130.63,130.6,19.1415]
[1725560011770,20.0,130.69,130.6,19.1415]
[1725560011771,7.6549,130.64,130.6,19.1415]
[1725560012086,7.6568,130.61,130.57,26.8042]
[1725560012296,1.91444285,130.6,130.57,26.8042]
[1725560012664,7.6559,130.62,130.58,7.658]
[1725560013390,1.91427845,130.61,130.58,7.658]
[1725560013885,7.6559,130.62,130.58,7.658]
[1725560015469,7.6564,130.61,130.57,19.1457]
[1725560015675,29.56943439,130.63,130.59,7.6571]
[1725560015989,9.56819933,130.65,130.61,7.656]
[1725560016191,7.6542,130.65,130.62,1.53092436]
[1725560016396,7.6536,130.66,130.62,9.18662436]
[1725560016587,1.91370777,130.65,130.62,9.18662436]
[1725560016892,1.91370777,130.65,130.62,7.6557]
[1725560017293,21.91370777,130.65,130.62,7.6557]
[1725560017868,29.56770777,130.65,130.62,7.6557]
[1725560018068,20.0,130.65,130.62,7.6557]
[1725560018282,1.91372754,130.67,130.63,7.6548]
[1725560018283,9.56662754,130.67,130.63,7.6548]
[1725560018464,7.6534,130.66,130.63,7.6548]
[1725560019090,9.56662754,130.67,130.63,7.6548]
[1725560020363,7.6536,130.66,130.62,26.7935]
[1725560021385,15.1349,130.68,130.6,35.7402]
[1725560021386,1.91364305,130.65,130.6,35.7402]
[1725560021566,7.655,130.64,130.6,43.3967]
[1725560021765,7.655,130.64,130.6,26.7987]
[1725560021766,9.56895731,130.64,130.6,26.7987]
[1725560021983,7.6552,130.63,130.6,26.7987]
[1725560022191,9.56931472,130.63,130.6,19.1422]
[1725560022395,7.6552,130.63,130.6,19.1422]
[1725560022768,7.656,130.62,130.58,19.1452]
[1725560023085,7.6554,130.63,130.59,7.6571]
[1725560023497,7.6554,130.63,130.59,9.18839245]
[1725560023671,7.6554,130.63,130.59,7.6571]
[1725560024293,7.6554,130.63,130.6,7.6569]
[1725560025101,7.6547,130.64,130.6,7.6569]
[1725560032203,1.91395751,130.63,130.6,7.6569]
[1725560033481,9.56876663,130.64,130.61,7.6562]
[1725560034209,7.6547,130.64,130.61,7.6562]
[1725560036006,9.56944952,130.63,130.59,26.7994]
[1725560036187,1.91384952,130.63,130.59,26.7994]
[1725560036384,7.6558,130.62,130.59,19.1424]
[1725560037210,7.6558,130.62,130.59,26.7999]
[1725560038399,1.91419962,130.65,130.59,19.1424]
[1725560038578,7.6558,130.62,130.59,26.7997]
[1725560039503,7.6558,130.62,130.59,19.1424]
[1725560041917,9.57087002,130.61,130.57,22.8763]
[1725560042123,7.6578,130.59,130.56,19.147]
[1725560042406,29.57161108,130.6,130.56,26.8059]
[1725560043209,27.6571,130.6,130.56,26.8059]
[1725560043715,1.91450697,130.59,130.56,26.8059]
[1725560044010,9.57210697,130.59,130.56,26.8059]
[1725560045518,20.0,130.58,130.53,19.1513]
[1725560045694,9.57373171,130.57,130.53,26.8119]
[1725560045897,7.6593,130.56,130.53,19.1513]
[1725560046205,1.9151644,130.55,130.53,19.1513]
[1725560046609,29.5750644,130.55,130.5,26.8183]
[1725560046825,1.9153129,130.54,130.51,13.40345002]
[1725560046999,7.6594,130.56,130.52,1.53213013]
[1725560047188,21.91516442,130.55,130.51,7.6621]
[1725560047383,20.0,130.55,130.51,7.6621]
[1725560047702,20.0,130.55,130.52,9.19353153]
[1725560047906,21.91516575,130.56,130.52,9.19353153]
[1725560048315,20.0,130.56,130.53,19.1525]
[1725560048495,1.91493622,130.61,130.57,19.1461]
[1725560048694,1.91422797,130.65,130.57,19.1461]
[1725560048899,1.91443188,130.64,130.54,40.6096]
[1725560049099,1.91443188,130.64,130.56,7.6587]
[1725560049100,7.6565,130.61,130.56,7.6587]
[1725560049417,1.91448652,130.6,130.54,40.6096]
[1725560049606,7.6565,130.61,130.54,40.6096]
[1725560049607,7.6565,130.61,130.57,7.6586]
[1725560050195,1.91442952,130.6,130.57,7.6586]
[1725560050391,7.6565,130.61,130.57,7.6586]
[1725560051207,9.57142847,130.6,130.56,26.8072]
[1725560051420,19.1368,130.64,130.56,19.148]
[1725560051624,7.6571,130.6,130.56,19.148]
[1725560052319,7.6575,130.59,130.56,19.148]
[1725560052512,1.91475429,130.58,130.56,19.148]
[1725560052813,29.57325429,130.58,130.54,7.6602]
[1725560053015,7.6604,130.55,130.51,7.6622]
[1725560053234,29.57610902,130.54,130.5,26.8195]
[1725560053405,7.6613,130.53,130.49,7.6633]
[1725560053610,21.91567853,130.52,130.48,7.6638]
[1725560053809,1.91570152,130.51,130.48,7.6638]
[1725560054016,21.91570383,130.52,130.48,7.6638]
[1725560054219,1.91570303,130.51,130.48,7.6638]
[1725560054535,21.91567543,130.52,130.48,9.00274759]
[1725560054732,20.0,130.52,130.49,9.00182021]
[1725560054915,1.91566887,130.53,130.49,9.00182021]
[1725560055111,21.91566887,130.53,130.49,9.00182021]
[1725560055307,21.91566887,130.53,130.49,7.6629]
[1725560056633,20.0,130.53,130.5,7.6627]
[1725560058033,1.91558977,130.52,130.49,26.8211]
[1725560059414,21.91566063,130.53,130.5,7.6627]
[1725560060319,21.91566063,130.53,130.51,7.6621]
[1725560060635,29.57599479,130.54,130.5,7.6626]
[1725560061126,7.6628,130.5,130.46,26.8262]
[1725560061337,1.91610131,130.49,130.46,26.8262]
[1725560063615,7.6628,130.5,130.46,26.8262]
[1725560064011,7.6622,130.51,130.46,19.1615]
[1725560064242,20.0,130.5,130.48,7.6639]
[1725560065338,20.0,130.51,130.48,7.6639]
[1725560065543,21.91578938,130.51,130.48,7.6639]
[1725560066929,29.57798938,130.51,130.48,7.6639]
[1725560067420,29.57798938,130.51,130.47,7.6644]
[1725560067729,29.57798938,130.51,130.46,19.1615]
[1725560067730,7.663,130.5,130.46,7.665]
[1725560067940,1.91600962,130.49,130.47,7.6645]
[1725560068941,1.91600962,130.49,130.46,26.8278]
[1725560074927,7.6643,130.48,130.44,26.8319]
[1725560075242,1.91627352,130.47,130.44,19.1658]
[1725560075424,7.6644,130.48,130.44,26.832]
[1725560075624,1.91644978,130.47,130.44,26.832]
[1725560077225,9.58004925,130.49,130.45,9.1986594]
[1725560077531,21.91619765,130.48,130.45,7.6655]
[1725560078122,1.91619765,130.48,130.45,7.6655]
[1725560078727,9.58029765,130.48,130.45,7.6655]
[1725560079143,9.58029765,130.48,130.44,26.8318]
[1725560081858,1.91619765,130.48,130.45,7.6655]
[1725560083456,9.58019765,130.48,130.44,26.8319]
[1725560085153,7.665,130.47,130.44,19.1658]
[1725560085659,1.91638955,130.46,130.44,19.1658]
[1725560086040,9.58148979,130.47,130.44,19.1658]
[1725560086251,1.91648979,130.47,130.44,19.1658]
[1725560086458,9.5804594,130.48,130.44,19.1658]
[1725560086667,1.9163068,130.52,130.49,7.6632]
[1725560087771,9.5781068,130.52,130.48,26.8224]
[1725560087939,7.6623,130.51,130.48,19.1586]
[1725560088140,7.6629,130.5,130.46,7.665]
[1725560088339,1.9163068,130.52,130.45,91.3684]
[1725560088542,7.6624,130.51,130.47,7.6641]
[1725560088847,1.91580018,130.5,130.47,7.6641]
[1725560089833,9.57870018,130.5,130.46,7.665]
[1725560090033,1.91599311,130.49,130.46,7.665]
[1725560090254,1.91599311,130.49,130.47,7.6645]
[1725560091459,1.91599311,130.49,130.46,7.665]
[1725560092767,9.57949311,130.49,130.45,26.8293]
[1725560092947,1.91619472,130.48,130.45,26.8293]
[1725560093659,1.91619472,130.48,130.44,7.6659]
[1725560093660,21.91619472,130.48,130.44,7.6659]
[1725560094162,20.0,130.5,130.44,7.6659]
[1725560094466,21.91647079,130.5,130.44,7.6659]
[1725560094665,15.5128,130.48,130.39,85.2193]
[1725560094854,20.0,130.47,130.4,5.75197724]
[1725560095173,20.0,130.47,130.39,85.2193]
[1725560095174,1.91676815,130.46,130.41,5.75197724]
[1725560095341,1.91688806,130.45,130.39,35.2193]
[1725560095537,1.91688806,130.45,130.4,5.75433796]
[1725560095732,1.91688806,130.45,130.39,35.2193]
[1725560095963,1.91688806,130.45,130.4,5.75438185]
[1725560096148,1.91688806,130.45,130.39,35.2193]
[1725560096341,7.6668,130.44,130.4,13.42245315]
[1725560096539,1.91692517,130.43,130.4,7.6683]
[1725560097157,9.58422517,130.43,130.41,5.75396814]
[1725560097350,1.91693548,130.46,130.39,35.2193]
[1725560097554,1.91693616,130.45,130.4,5.75416657]
[1725560097860,21.91693616,130.45,130.36,19.1765]
[1725560098051,21.91693616,130.45,130.37,15.36226288]
[1725560098366,21.91693616,130.45,130.38,5.75512867]
[1725560098683,7.6671,130.43,130.39,13.42432867]
[1725560098840,1.91714746,130.42,130.4,5.75512867]
[1725560099043,1.91714746,130.42,130.39,7.6692]
[1725560099243,1.91714746,130.42,130.4,5.7533689]
[1725560099540,1.91714746,130.42,130.39,7.6692]
[1725560099758,1.91714746,130.42,130.4,5.75368897]
[1725560099958,1.91714746,130.42,130.39,7.6692]
[1725560100141,1.91714877,130.43,130.4,13.42250002]
[1725560100337,21.91714877,130.43,130.4,7.6686]
[1725560100537,6.18,130.46,130.41,1.53367185]
[1725560100741,1.91674314,130.45,130.42,13.42034783]
[1725560100965,1.91674314,130.45,130.42,7.6673]
[1725560101171,1.91674314,130.45,130.39,7.6692]
[1725560101355,7.6665,130.44,130.4,5.75430225]
[1725560101555,1.91705806,130.43,130.41,5.75441297]
[1725560101885,1.91705806,130.43,130.39,26.8414]
[1725560101886,1.91705806,130.43,130.4,7.6686]
[1725560103069,1.91705806,130.43,130.41,5.75377523]
[1725560103267,7.6665,130.44,130.4,9.2021294]
[1725560103468,7.6665,130.44,130.41,5.75290129]
[1725560103766,7.6659,130.45,130.41,7.6681]
[1725560103972,20.0,130.44,130.41,7.6681]
[1725560104275,18.99134206,130.48,130.42,7.28645171]
[1725560104276,1.9167586,130.46,130.42,7.28645171]
[1725560104452,18.99134206,130.48,130.43,32.58654483]
[1725560104453,26.65574206,130.48,130.43,32.58654483]
[1725560104650,9.58108392,130.47,130.43,19.1668]
[1725560104843,7.6655,130.46,130.42,7.6673]
[1725560105045,1.91674698,130.45,130.4,19.1705]
[1725560105276,9.58254698,130.45,130.41,13.4243784]
[1725560105570,9.58156248,130.47,130.43,7.6669]
[1725560105748,20.0,130.46,130.43,7.6669]
[1725560106662,20.0,130.46,130.42,26.8358]
[1725560106663,1.91656748,130.45,130.42,26.8358]
[1725560107082,9.58236748,130.45,130.42,19.1685]
[1725560107248,1.91656748,130.45,130.42,26.8357]
[1725560108651,29.58226748,130.45,130.42,19.1685]
[1725560108852,1.9168664,130.44,130.42,19.1685]
[1725560109269,9.5833664,130.44,130.4,7.6685]
[1725560109473,9.5833664,130.44,130.41,5.75594777]
[1725560109776,9.5833664,130.44,130.4,7.6685]
[1725560109953,9.5833664,130.44,130.41,5.75562979]
[1725560110153,9.5833664,130.44,130.4,7.6685]
[1725560110373,9.5833664,130.44,130.41,13.42334174]
[1725560110575,9.5833664,130.44,130.42,5.75534174]
[1725560110762,9.5833664,130.44,130.41,7.668]
[1725560110961,9.5833664,130.44,130.42,5.75521517]
[1725560111164,9.5833664,130.44,130.41,7.668]
[1725560111165,1.9168664,130.44,130.41,7.668]
[1725560111370,7.6652,130.46,130.42,7.6671]
[1725560111667,20.0,130.45,130.41,19.1702]
[1725560111867,21.91661551,130.45,130.42,7.6673]
[1725560112083,21.91661551,130.45,130.42,13.42338835]
[1725560112975,29.58241551,130.45,130.42,5.75608835]
[1725560113272,29.58241551,130.45,130.41,26.8381]
[1725560113463,29.58241551,130.45,130.42,5.75713655]
[1725560113654,20.0,130.45,130.42,7.6674]
[1725560113858,20.0,130.45,130.43,7.6667]
[1725560114058,21.91670959,130.46,130.43,7.6667]
[1725560114279,20.0,130.46,130.44,7.6662]
[1725560114459,1.91655303,130.47,130.44,7.6662]
[1725560114783,1.91655303,130.47,130.45,7.6656]
[1725560115070,15.5128,130.48,130.43,1.53312982]
[1725560115071,1.91640553,130.48,130.46,7.6646]
[1725560115282,7.6635,130.49,130.45,7.6655]
[1725560115488,1.91638188,130.48,130.44,19.1657]
[1725560115854,1.91654672,130.5,130.45,5.75274332]
[1725560116157,1.91654672,130.5,130.44,19.1657]
[1725560116158,9.57861109,130.51,130.47,7.6644]
[1725560116363,9.57861109,130.51,130.44,50.0]
[1725560116364,1.91593245,130.53,130.49,7.663]
[1725560116561,5.31452279,130.53,130.49,7.663]
[1725560116886,5.31452279,130.53,130.46,50.0]
[1725560116887,1.91593245,130.53,130.51,7.662]
[1725560117290,1.91593245,130.53,130.5,26.8196]
[1725560117669,9.57713245,130.53,130.5,19.1569]
[1725560118177,9.57713245,130.53,130.49,7.6633]
[1725560118960,20.0,130.52,130.51,7.6622]
[1725560119178,20.0,130.52,130.49,20.69051213]
[1725560119403,20.0,130.53,130.5,1.53241868]
[1725560119560,1.91541554,130.54,130.51,19.1554]
[1725560119759,1.9154155,130.56,130.51,19.1554]
[1725560120089,7.6602,130.55,130.51,26.8174]
[1725560120289,1.91541932,130.54,130.51,26.8174]
[1725560120664,9.57591932,130.54,130.51,19.1554]
[1725560120871,20.0,130.53,130.51,19.1554]
[1725560121059,20.0,130.53,130.5,7.6626]
[1725560121265,1.91556465,130.52,130.49,7.6633]
[1725560121893,27.661,130.53,130.49,7.6633]
[1725560122478,1.91556021,130.52,130.49,7.6633]
[1725560123093,27.661,130.53,130.49,7.6633]
[1725560123293,1.91555948,130.52,130.49,7.6633]
[1725560123613,9.57725948,130.52,130.48,26.8226]
[1725560123896,1.91571239,130.51,130.48,26.8226]
[1725560124067,9.57741239,130.52,130.49,7.6634]
[1725560124265,1.91571239,130.52,130.49,7.6634]
[1725560124880,20.0,130.53,130.5,7.6626]
[1725560125080,21.91555483,130.53,130.5,7.6626]
[1725560125791,29.57665483,130.53,130.5,7.6626]
[1725560127985,21.91555483,130.53,130.5,7.6626]
[1725560128190,21.91555483,130.53,130.51,7.6619]
[1725560128498,1.91555597,130.52,130.51,7.6619]
[1725560128887,1.91555577,130.54,130.47,19.1602]
[1725560129193,7.6613,130.53,130.49,7.6632]
[1725560129381,29.57729598,130.52,130.48,7.6637]
[1725560129583,9.57788278,130.51,130.48,7.6637]
[1725560129803,9.57876497,130.5,130.47,19.1602]
[1725560130095,7.6624,130.51,130.47,26.8246]
[1725560130290,7.6618,130.52,130.48,9.1965651]
[1725560130499,1.91598296,130.53,130.52,7.6616]
[1725560130675,1.91552384,130.54,130.51,7.662]
[1725560131081,1.91552384,130.54,130.53,7.661]
[1725560131287,1.91540935,130.54,130.52,26.8149]
[1725560131479,21.91531749,130.56,130.52,19.1534]
[1725560131686,21.91531749,130.56,130.53,7.661]
[1725560131987,1.91514231,130.57,130.54,7.6601]
[1725560133300,9.57394231,130.57,130.53,7.6608]
[1725560134100,20.0,130.56,130.53,7.6608]
[1725560134594,20.0,130.56,130.54,7.6604]
[1725560134778,1.91508382,130.6,130.51,66.5429]
[1725560134982,1.91467667,130.61,130.58,7.658]
[1725560135187,7.6558,130.62,130.59,7.6571]
[1725560135188,1.91423185,130.62,130.59,7.6571]
[1725560135398,1.91423185,130.62,130.58,28.33365074]
[1725560136279,9.57003185,130.62,130.58,28.33365074]
[1725560136474,9.57003185,130.62,130.58,26.8023]
[1725560137282,9.57003185,130.62,130.59,1.5313492]
[1725560138097,1.91423185,130.62,130.58,19.1444]
[1725560138280,7.656,130.62,130.58,26.8025]
[1725560138481,20.0,130.61,130.58,26.8025]
[1725560138988,9.56927193,130.64,130.6,7.6567]
[1725560139293,27.6552,130.63,130.59,7.6571]
[1725560139484,20.0,130.63,130.6,19.1422]
[1725560139803,15.4934,130.67,130.6,19.1422]
[1725560139804,1.91399605,130.66,130.61,1.53105425]
[1725560140003,9.56779605,130.66,130.61,9.18715425]
[1725560140177,7.654,130.65,130.61,7.6561]
[1725560140482,9.56880454,130.64,130.6,19.1422]
[1725560140800,1.91380454,130.64,130.57,69.1458]
[1725560141400,1.91380454,130.64,130.58,1.53128723]
[1725560141695,1.91407641,130.65,130.58,1.53128723]
[1725560141998,1.91407576,130.64,130.59,26.8007]
[1725560142305,9.56867576,130.64,130.6,9.18762102]
[1725560142694,20.0,130.63,130.6,7.6565]
[1725560143096,20.0,130.63,130.6,9.18760422]
[1725560143602,20.0,130.63,130.6,7.6565]
[1725560144307,20.0,130.63,130.6,9.18760266]
[1725560144600,1.91387755,130.66,130.61,20.67160266]
[1725560144901,25.06024285,130.67,130.63,7.655]
[1725560145079,7.6541,130.65,130.61,26.7965]
[1725560145591,1.91366145,130.65,130.62,7.6557]
[1725560146595,29.56766145,130.65,130.61,26.7967]
[1725560148802,20.0,130.65,130.62,9.1867344]
[1725560149202,20.0,130.65,130.62,7.6556]
[1725560149700,20.0,130.65,130.62,9.18655057]
[1725560150223,20.0,130.65,130.63,7.655]
[1725560150373,21.913918,130.66,130.63,7.655]
[1725560150577,29.567318,130.66,130.62,9.18645057]
[1725560150798,29.567318,130.66,130.62,7.6555]
[1725560150989,7.6541,130.65,130.61,26.7966]
[1725560151395,9.5684564,130.64,130.61,19.1405]
[1725560151778,1.9137564,130.64,130.61,26.7968]
[1725560153310,9.5683564,130.64,130.61,26.7968]
[1725560153483,7.6546,130.64,130.61,26.7968]
[1725560153685,9.568492,130.64,130.61,19.1405]
[1725560154608,1.9140457,130.63,130.61,19.1405]
[1725560155404,1.9140457,130.63,130.6,7.6567]
[1725560156004,9.56867736,130.64,130.6,7.6567]
[1725560156206,27.6536,130.66,130.62,7.6557]
[1725560156597,1.91369008,130.65,130.62,7.6557]
[1725560156911,27.6536,130.66,130.62,7.6557]
[1725560157091,9.56780567,130.65,130.62,7.6557]
[1725560157296,9.56780567,130.65,130.61,26.7967]
[1725560157687,1.91381213,130.64,130.58,19.1441]
[1725560157997,7.6555,130.63,130.6,7.6567]
[1725560158316,1.91407537,130.64,130.61,7.6563]
[1725560158890,9.5680025,130.65,130.61,7.6563]
[1725560159303,9.5680025,130.65,130.62,7.6557]
[1725560160916,1.91380849,130.64,130.61,7.6561]
[1725560161421,7.6557,130.62,130.58,57.6579]
[1725560161608,1.91380849,130.64,130.6,7.6565]
[1725560161609,9.56860849,130.64,130.6,7.6565]
[1725560161809,7.6548,130.64,130.6,7.6565]
[1725560162008,7.6548,130.64,130.6,26.7987]
[1725560162614,7.6573,130.6,130.53,61.4176]
[1725560162810,9.57263923,130.59,130.55,7.6597]
[1725560163001,20.0,130.58,130.55,7.6597]
[1725560163324,1.91479493,130.57,130.53,16.5392]
[1725560163498,9.57389493,130.57,130.53,7.6608]
[1725560164118,27.6581,130.58,130.54,1.53200397]
[1725560164315,9.57210497,130.6,130.56,7.6589]
[1725560164518,1.91500497,130.6,130.57,7.6586]
[1725560164704,21.91500497,130.6,130.57,7.6586]
[1725560165021,7.6559,130.62,130.58,9.18957447]
[1725560165205,7.6554,130.63,130.59,7.6574]
[1725560165525,1.91411244,130.62,130.59,7.6574]
[1725560165828,7.6554,130.63,130.59,7.6574]
[1725560166201,1.91413648,130.62,130.59,7.6574]
[1725560166401,21.91414222,130.62,130.59,7.6574]
[1725560166612,21.91413595,130.62,130.59,7.6574]
[1725560166925,7.6548,130.64,130.6,7.6568]
[1725560167127,9.56885103,130.64,130.6,7.6568]
[1725560167622,9.56885103,130.64,130.61,26.7971]
[1725560167623,1.91405103,130.64,130.61,26.7971]
[1725560167824,1.91405103,130.64,130.61,28.32834011]
[1725560168013,1.91405103,130.64,130.61,26.7971]
[1725560168212,20.0,130.64,130.61,26.7971]
[1725560169020,21.91382741,130.64,130.61,26.7971]
[1725560170306,21.91382741,130.64,130.58,19.1441]
[1725560170519,1.91382741,130.64,130.58,19.1441]
[1725560170733,20.0,130.65,130.58,19.1441]
[1725560170734,20.0,130.63,130.58,19.1441]
[1725560170905,1.91418545,130.62,130.59,7.657]
[1725560171614,9.56903237,130.64,130.6,7.6569]
[1725560171813,20.0,130.63,130.6,7.6569]
[1725560172198,1.91413367,130.62,130.59,7.6573]
[1725560172404,7.6564,130.61,130.58,19.1441]
[1725560172707,21.91450619,130.6,130.57,7.6584]
[1725560172920,21.91450619,130.6,130.56,7.659]
[1725560173122,27.6576,130.59,130.55,19.1483]
[1725560173322,1.91467716,130.58,130.56,7.6592]
[1725560173642,20.0,130.59,130.56,7.6592]
[1725560173997,1.9146745,130.58,130.56,7.6592]
[1725560174618,1.9146745,130.58,130.55,19.1483]
[1725560174830,1.9146745,130.58,130.55,26.808]
[1725560175024,1.9146745,130.58,130.53,38.3034]
[1725560175025,1.9146745,130.58,130.52,41.5453]
[1725560175325,7.6582,130.58,130.53,7.6605]
[1725560175531,1.91487991,130.57,130.54,7.6604]
[1725560175912,21.9148793,130.58,130.55,7.6598]
[1725560176305,20.0,130.58,130.55,7.6598]
[1725560176709,20.0,130.58,130.55,9.19157018]
[1725560176907,1.91474643,130.61,130.56,19.148]
[1725560177221,41.050506,130.65,130.57,1.53140384]
[1725560177222,1.91425481,130.62,130.57,1.53140384]
[1725560177420,1.91423118,130.64,130.57,1.53140384]
[1725560177608,19.141,130.61,130.53,19.1514]
[1725560177809,1.91487695,130.6,130.54,5.73724075]
[1725560178115,21.91456943,130.64,130.55,5.73724075]
[1725560178332,45.0,130.63,130.53,50.0]
[1725560178526,21.91456536,130.62,130.54,14.91521131]
[1725560178711,7.6572,130.6,130.56,7.6589]
[1725560179039,21.91456758,130.59,130.55,26.8089]
[1725560179826,7.6591,130.57,130.53,7.6606]
[1725560180008,1.91505013,130.56,130.54,5.73650959]
[1725560180211,1.91505013,130.56,130.53,7.6606]
[1725560180434,1.91505013,130.56,130.54,5.73802885]
[1725560180740,1.91505013,130.56,130.52,22.3926]
[1725560180919,1.91519149,130.58,130.49,19.1573]
[1725560181108,1.91542482,130.57,130.49,19.1573]
[1725560181303,1.91542482,130.57,130.5,14.92804432]
[1725560181304,7.6607,130.54,130.5,14.92804432]
[1725560181509,1.91555434,130.53,130.51,5.74101794]
[1725560181731,21.91555434,130.53,130.48,2.78510999]
[1725560181933,7.662,130.52,130.49,5.7434]